Cogmind - Beta 14 @@@ ROGUE MODE // 2024.11.04 @ 11:59:10 Player: Briarspitter Result: Destroyed by Y-45 Defender with Heavy Assault Rifle Performance ------------- Evolutions (1) 500 Regions Visited (4) 800 Robots Destroyed (28) 140 Value Destroyed (609) 609 Prototype IDs (2) 40 Alien Tech Used (0) 0 Bonus (-387) -387 TOTAL SCORE: 1702 Bonus ------- Follower Combat Kills 14 Friendly Fire -401 Cogmind --------- Core Integrity 0/400 Matter 295/300 Energy 280/280 System Corruption 0% Temperature Cool (9) Movement Treading (160) Location -9/Storage Parts ------- > --- POWER (1) -------- Heavy Ion Engine > --- PROPULSION (2) --- Light Treads Light Treads > --- UTILITY (4) ------ Small Storage Unit Drone Bay (2/2) > --- WEAPON (2) ------- Mini Grenade Launcher > --- INVENTORY (8) ---- Improved Ion Engine Light Treads Drone Bay (0/2) Hammer Mining Claw Peak State ------------ > --- POWER ------------ Heavy Ion Engine > --- PROPULSION ------- Light Treads > --- UTILITY ---------- Small Storage Unit Drone Bay Drone Bay Drone Bay > --- WEAPON ----------- Improved Medium Laser Beamcaster > --- INVENTORY -------- Drone Bay [Rating: 28] Favorites ----------- Power Ion Engine Engine Ion Engine Propulsion Aluminum Leg Treads Light Treads Leg Aluminum Leg Utility Small Storage Unit Device Seismic Detector Storage Small Storage Unit Weapon Light Assault Rifle Energy Gun Improved Medium Laser Ballistic Gun Light Assault Rifle Ballistic Cannon Improved Light Cannon Launcher Mini Grenade Launcher Impact Weapon Hammer Slashing Weapon Mining Claw Build | -11 -10 -10 -9 -9 ------- Run | Yrd Mat Min Mat Sto Slots Evolved 2 | . . . 2 . Power . | . . . . . Propulsion . | . . . . . Utility 2 | . . . 2 . Weapon . | . . . . . Parts Attached 46 | 8 3 5 12 18 Power 5 | 1 . 1 1 2 Engine 5 | 1 . 1 1 2 Core . | . . . . . Reactor . | . . . . . Propulsion 13 | 2 . 2 4 5 Treads 3 | . . . . 3 Leg 10 | 2 . 2 4 2 Wheel . | . . . . . Hover . | . . . . . Flight . | . . . . . Utility 11 | 2 1 . 3 5 Device 10 | 1 1 . 3 5 Storage 1 | 1 . . . . Processor . | . . . . . Hackware . | . . . . . Protection . | . . . . . Artifact . | . . . . . Weapon 17 | 3 2 2 4 6 Energy Gun 5 | 1 . . 2 2 Energy Cannon . | . . . . . Ballistic Gun 5 | 2 1 2 . . Ballistic Cannon 2 | . . . 2 . Launcher 2 | . 1 . . 1 Special Weapon . | . . . . . Impact Weapon 2 | . . . . 2 Slashing Weapon 1 | . . . . 1 Piercing Weapon . | . . . . . Special Melee Weapon . | . . . . . Unidentified Prototypes 2 | . . . 2 . Parts Lost 13 | . . . . 13 Power 1 | . . . . 1 Propulsion 3 | . . . . 3 Utility 5 | . . . . 5 Weapon 4 | . . . . 4 Highest Loss Streak 10 | . . . . 10 To Critical Strikes . | . . . . . Average Slot Usage (%) 94 | . 100 100 97 85 Engine 11 | . 14 14 11 9 Treads 2 | . . . . 9 Leg 20 | . 28 28 22 10 Device 22 | . 14 14 31 22 Storage 12 | . 14 14 11 11 Energy Gun 6 | . . . 6 13 Ballistic Gun 10 | . 26 28 4 . Ballistic Cannon 3 | . . . 11 . Launcher 1 | . 1 . . 3 Peak Build Rating 28 | 7 8 8 22 28 Average Rating 13 | 5 7 7 16 18 On Entrance 9 | . 7 8 8 22 Naked Turns . | . . . . . Heaviest Build 36 | 13 15 13 25 36 Greatest Support 40 | 20 20 20 20 40 Greatest Overweight (x) 1 | . . . 1 1 Average Overweight (x) . | . . . . . Largest Inventory Capacity 8 | 8 8 8 8 8 Average Capacity 7 | 7 8 8 8 8 Most Carried 8 | 6 8 8 8 8 Average Carried 6 | 3 6 7 7 5 Final Capacity 8 | 8 8 8 8 8 Final Carried 8 | 5 8 8 8 5 Class Distribution -------------------- 56% | Mutant 43% | Scavenger-Mutant Dominant Class ---------------- Mutant | -10/Materials Scavenger-Mutant | -10/Mines Scavenger-Mutant | -9/Materials Mutant | -9/Storage Resources | -11 -10 -10 -9 -9 ----------- Run | Yrd Mat Min Mat Sto Matter Collected 806 | 303 66 51 221 165 Remotely . | . . . . . Salvage Created 898 | 128 131 51 312 276 Parts 51 | 7 4 6 15 19 Haulers Intercepted 1 | . 1 . . . Recyclers Shooed 2 | 2 . . . . Parts Field Recycled . | . . . . . Retrieved Matter . | . . . . . Parts Self-Destructed . | . . . . . Prevented . | . . . . . Kills | -11 -10 -10 -9 -9 ------- Run | Yrd Mat Min Mat Sto Combat Hostiles Destroyed 21 | . 2 3 6 10 Guns 12 | . 2 3 1 6 Cannons 5 | . . . 5 . AOE 3 | . . . . 3 Classes Destroyed 8 | 2 2 1 1 2 Tunneler 2 | 2 . . . . Hauler 1 | . 1 . . . Recycler 3 | 1 . . 2 . Mechanic 1 | . . . . 1 Drone 3 | . . . . 3 Swarmer 10 | . . 3 1 6 Grunt 6 | . 2 . 4 . Sentry 5 | . . . 1 4 Best Kill Streak 4 | 1 2 3 3 4 Combat Bots Only 4 | . 2 3 3 4 Max Kills in Single Turn 5 | 1 1 1 1 5 Gunslinging . | . . . . . Exploded 2 | . . . . 2 Melee . | . . . . . Uniques/NPCs Destroyed . | . . . . . Combat | -11 -10 -10 -9 -9 -------- Run | Yrd Mat Min Mat Sto Hostile Shots Fired 250 | . 21 19 27 183 Missed 60 | . 4 6 5 45 Damage Taken 2459 | . 269 100 262 1828 Core 498 | . 91 . 61 346 Absorbed by Shields . | . . . . . Core Remaining (%) 81 | 100 . 63 . . Volleys Fired 77 | 14 21 7 14 21 Largest 2 | 2 2 2 2 2 Hottest 131 | 40 40 40 131 131 Shots Fired 146 | 28 39 14 28 37 Gun 120 | 28 39 14 6 33 Cannon 22 | . . . 22 . Launcher 4 | . . . . 4 Special . | . . . . . Kinetic 103 | 28 39 14 22 . Thermal 39 | . . . 6 33 Explosive 4 | . . . . 4 Electromagnetic . | . . . . . Robot Hit Streak 11 | 4 9 3 7 11 Robot Miss Streak 4 | 3 4 2 3 2 Penetration Max . | . . . . . Secondary Targets . | . . . . . Shots Hit Robots 108 | 16 27 8 16 41 Core Hits 37 | 6 7 3 7 14 Critical Kills . | . . . . . Critical Parts Destroyed 3 | . 1 . . 2 Critical Strikes 5 | . 1 . 1 3 Burn 2 | . . . 1 1 Destroy 1 | . 1 . . . Smash 2 | . . . . 2 Melee Attacks 23 | . . . . 23 Impact 16 | . . . . 16 Slashing 7 | . . . . 7 Piercing . | . . . . . Sneak Attacks 1 | . . . . 1 Combat Hostiles . | . . . . . Follow-up Attacks 3 | . . . . 3 Damage Inflicted 1864 | 137 201 70 344 1112 Guns 833 | 132 195 70 59 377 Cannons 285 | . . . 285 . Explosions 358 | . . . . 358 Melee 377 | . . . . 377 Ramming 11 | 5 6 . . . Kinetic 682 | 132 195 70 285 . Thermal 436 | . . . 59 377 Explosive 358 | . . . . 358 Electromagnetic . | . . . . . Impact 233 | . . . . 233 Slashing 144 | . . . . 144 Piercing . | . . . . . Highest Corruption 2 | . 2 2 . . Average Corruption 1 | . 1 2 . . Corruption Purged . | . . . . . Corruption Blocked . | . . . . . Effects 3 | . . 3 . . Message Errors 2 | . . 2 . . Data Loss (major) 1 | . . 1 . . Overload Shots . | . . . . . Overflow Damage 102 | . . . 17 85 Projectiles 17 | . . . 17 . Explosions 13 | . . . . 13 Melee 72 | . . . . 72 Knockbacks 2 | . . . 2 . Impact . | . . . . . Kinetic 2 | . . . 2 . Secondary . | . . . . . Self-Inflicted Damage 32 | . . . . 32 Shots 1 | . . . . 1 Rammed . | . . . . . Targets Rammed 4 | 2 2 . . . Kicked 4 | 2 2 . . . Crushed . | . . . . . Highest Temperature 210 | . 12 . 51 210 Average Temperature 53 | . 7 . 20 77 Received Heat Transfer 807 | . 102 . 102 603 Siege Activations . | . . . . . Robots Corrupted 1 | . . . . 1 Combat Hostiles 1 | . . . . 1 Parts Fried 2 | . . . . 2 Impact Corruptions 4 | . . . . 4 Robots Melted . | . . . . . Combat Hostiles . | . . . . . Parts Melted 2 | . . . 1 1 Heat Transferred 1036 | . . . 185 851 Parts Sabotaged . | . . . . . Parts Stolen . | . . . . . Parts Stripped . | . . . . . Power Chain Reactions . | . . . . . Alert | -11 -10 -10 -9 -9 ------- Run | Yrd Mat Min Mat Sto Peak Influence 248 | 15 86 103 248 238 Initial 46 | . 9 33 39 46 Average 101 | 6 43 79 132 135 Maximum Alert Level 1 | . . . 1 1 Low Security (%) 80 | 100 100 100 61 73 Level 1 19 | . . . 38 26 Level 2 . | . . . . . Level 3 . | . . . . . Level 4 . | . . . . . Level 5 . | . . . . . High Security . | . . . . . Max Security . | . . . . . Squads Dispatched 5 | . 1 . . 4 Investigation 1 | . . . . 1 Extermination . | . . . . . Reinforcement 1 | . 1 . . . Assault . | . . . . . Garrison 3 | . . . . 3 Intercept . | . . . . . Searches Triggered . | . . . . . Construction Impeded . | . . . . . Haulers Reinforced . | . . . . . Active Scanning Responses . | . . . . . Cargo Convoy Interrupts . | . . . . . Stealth | -11 -10 -10 -9 -9 --------- Run | Yrd Mat Min Mat Sto Distress Signals 1 | . . . 1 . Communications Jammed . | . . . . . Distress Signals . | . . . . . Times Spotted 34 | . 5 3 11 15 Peak Tracking Total 5 | . 2 3 4 5 Tactical Retreats 1 | . . . . 1 Traps | -11 -10 -10 -9 -9 ------- Run | Yrd Mat Min Mat Sto Traps Triggered 3 | . 2 . . 1 Indirectly . | . . . . . Trap Hack Attempts . | . . . . . Triggered . | . . . . . Disarmed . | . . . . . Reprogrammed . | . . . . . Reused . | . . . . . Traps Extracted . | . . . . . Installed . | . . . . . Triggered . | . . . . . Machines | -11 -10 -10 -9 -9 ---------- Run | Yrd Mat Min Mat Sto Machines Disabled 2 | . . . 1 1 Max in Single Turn 1 | . . . 1 1 Machines Repaired . | . . . . . Machines Dismantled . | . . . . . Machines Sabotaged . | . . . . . Overloaded Fab Kills . | . . . . . Hacking | -11 -10 -10 -9 -9 --------- Run | Yrd Mat Min Mat Sto Machines Accessed 5 | . . . 2 3 Terminals 3 | . . . 1 2 Fabricators . | . . . . . Repair Stations . | . . . . . Recycling Units 2 | . . . 1 1 Scanalyzers . | . . . . . Garrison Access . | . . . . . Total Hacks 13 | . . . 7 6 Successful 8 | . . . 4 4 Failed 5 | . . . 3 2 Catastrophic 2 | . . . 1 1 Database Lockouts . | . . . . . Manual . | . . . . . Terminals 6 | . . . 3 3 Fabricators . | . . . . . Repair Stations . | . . . . . Recycling Units 7 | . . . 4 3 Scanalyzers . | . . . . . Garrison Access . | . . . . . Terminal Hacks 5 | . . . 3 2 Record 1 | . . . 1 . Open Door 2 | . . . . 2 Alert Level 1 | . . . 1 . Locate Traps 1 | . . . 1 . Fabricator Hacks . | . . . . . Repair Station Hacks . | . . . . . Recycling Unit Hacks 3 | . . . 1 2 Report Inventory 2 | . . . 1 1 Retrieve Components 1 | . . . . 1 Scanalyzer . | . . . . . Garrison Access Hacks . | . . . . . Unauthorized Hacks . | . . . . . Terminals . | . . . . . Fabricators . | . . . . . Repair Stations . | . . . . . Recycling Units . | . . . . . Scanalyzers . | . . . . . Garrison Access . | . . . . . Data Cores Recovered . | . . . . . Used . | . . . . . Hacking Detections 2 | . . . 1 1 Full Trace Events . | . . . . . Feedback Events . | . . . . . Feedback Blocked . | . . . . . Robot Schematics Acquired . | . . . . . Robots Built . | . . . . . Authchips . | . . . . . Time . | . . . . . Total Robot Build Rating . | . . . . . Part Schematics Acquired . | . . . . . Parts Built . | . . . . . Authchips . | . . . . . Time . | . . . . . Total Part Build Rating . | . . . . . Parts Repaired . | . . . . . Time . | . . . . . Parts Recycled . | . . . . . Recycled Matter . | . . . . . Retrieved Matter . | . . . . . Retrieved Components 3 | . . . . 3 Parts Scanalyzed . | . . . . . Part Schematics Acquired . | . . . . . Parts Damaged . | . . . . . Bothacking | -11 -10 -10 -9 -9 ------------ Run | Yrd Mat Min Mat Sto Used RIF Installer . | . . . . . Robots Hacked . | . . . . . Non-combat . | . . . . . Combat . | . . . . . Robot Hacks Applied . | . . . . . Relay Couplers Released . | . . . . . Fabnet Peak Effective % . | . . . . . Robots Rewired . | . . . . . Allies Hacked . | . . . . . Hacks Repelled . | . . . . . Allies | -11 -10 -10 -9 -9 -------- Run | Yrd Mat Min Mat Sto Total Allies 1 | . . 1 . . Largest Group 1 | . . 1 1 . Highest-Rated Group 31 | . . 31 31 . Highest-Rated Ally 31 | . . 31 31 . Total Orders . | . . . . . Ally Attacks 8 | . . . 8 . Total Damage 147 | . . . 147 . Kills 3 | . . . 3 . Allies Corrupted . | . . . . . Allies Melted . | . . . . . Intel | -11 -10 -10 -9 -9 ------- Run | Yrd Mat Min Mat Sto Robot Analysis Total . | . . . . . Derelict Logs Recovered . | . . . . . Drone Launches 12 | . . . . 12 Drone Recoveries 7 | . . . . 7 Exploration | -11 -10 -10 -9 -9 ------------- Run | Yrd Mat Min Mat Sto Turns Passed 1540 | 129 210 278 505 418 Spaces Moved 764 | 68 113 186 250 147 Core 16 | 16 . . . . Treads 86 | . . . . 86 Legs 662 | 52 113 186 250 61 Wheels . | . . . . . Hover . | . . . . . Flight . | . . . . . Fastest Speed 50 | 50 120 120 120 120 Average Speed 143 | 103 120 120 169 167 Slowest Speed 240 | 120 120 120 190 240 Overloaded Moves . | . . . . . Propulsion Burnouts . | . . . . . Robots Hopped . | . . . . . Cave-ins Triggered . | . . . . . Exploration Rate (%) 24 | 4 19 49 25 25 Regions Visited 4 Branch Regions 2 Pre-discovered Areas . | . . . . . Known Exits Taken . | . . . . . Unknown Exits Taken 4 | 1 1 1 1 . Scrap Searched . | . . . . . Spaces Dug . | . . . . . Terrain Destroyed 21 | . . . 2 19 Melee . | . . . . . Projectile 2 | . . . 2 . AOE 19 | . . . . 19 Terrain Rammed . | . . . . . Walls Destroyed . | . . . . . Machines Disabled . | . . . . . Actions | -11 -10 -10 -9 -9 --------- Run | Yrd Mat Min Mat Sto Total 1042 | 103 156 229 310 244 Wait 68 | . 11 26 10 21 Move 760 | 67 112 185 249 147 Hop . | . . . . . Pick Up 39 | 12 5 2 9 11 Fast Attach 8 | . . 2 5 1 Attach 20 | 7 1 . 2 10 Detach . | . . . . . Swap 18 | 1 2 3 5 7 Drop 28 | . 2 4 16 6 Fire 77 | 14 21 7 14 21 Melee 20 | . . . . 20 Ram . | . . . . . Kick 4 | 2 2 . . . Crush . | . . . . . Escape Stasis . | . . . . . Rewire . | . . . . . Trap . | . . . . . Miscellaneous . | . . . . . Route ------- -11/Scrapyard -10/Materials (discovered 2 exits: *Mat / [*Min]) -10/Mines (discovered 2 exits: *Mat x2) -9/Materials -9/Storage History --------- Turn | Location | Event 9 | -11/Scrapyard | Discovered new exit (range 15) 130 | -11/Scrapyard | Entered Materials 230 | -10/Materials | Discovered new exit (range 15) 269 | -10/Materials | Discovered new exit (range 15) 314 | -10/Materials | Build established: Mutant 340 | -10/Materials | Entered Mines 385 | -10/Mines | YI-UF0 nonchalantly dropped a Grenade Launcher on the ground 462 | -10/Mines | Escorted by a lone wolf Derelict 573 | -10/Mines | Discovered new exit (range 7) 595 | -10/Mines | Discovered new exit (range 12) 618 | -10/Mines | Entered Materials 618 | -9/Materials | Accompanied by 1 ally 618 | -9/Materials | Evolved 2 slots: Utility x2 1082 | -9/Materials | Discovered new exit (range 4) 1123 | -9/Materials | Entered Storage 1191 | -9/Storage | Build established: Scavenger-Mutant 1327 | -9/Storage | Garrison activated, responded to threat 1333 | -9/Storage | Core integrity fell below 50% 1345 | -9/Storage | Core integrity fell below 20% 1390 | -9/Storage | Lost 10 parts (1p3n3u3w) 1436 | -9/Storage | Lost 5 allies 1541 | -9/Storage | Destroyed by Y-45 Defender with Heavy Assault Rifle Last Messages --------------- K-01 Serf collects debris. U-05 Engineer lays Concrete. U-05 Engineer builds a Wall. U-05 Engineer lays Concrete. K-01 Serf collects debris. U-05 Engineer lays Concrete. Acquired 18 matter. U-05 Engineer lays Concrete. Acquired Mining Claw. Drone released from Drone Bay. Connecting with Door Terminal... >>Open(Door) Sealed Heavy Doors opened. Triggered Alarm Trap. An alarm sounds. ALERT: Alarm triggered, dispatching investigation squad. Drone retrieved by Drone Bay. U-05 Engineer lays Concrete. Imp. Medium Laser destroyed. Map ----- +----------------------------------------------------+ | ?????????????????????????????????????????????????? | | ?????????????????????????????????????????????????? | | ?????????????????????????????????????????????????? | | ?????????????????????????????????????????????????? | | ?????????????????????????????????????????????????? | | ?????????????????????????????????????????????????? | | ?????????????????????????????????????????????????? | | ?????????????????????????????????????????????????? | | ?????????????????????????????????????????????????? | | ?????????????????????????????????????????????????? | | ???????????????????????? u??????????????????????? | | ???????????????????????? ss??????????????????????? | | ???????????????????????? #?????????"?#?????????? | | ???????????????????????# #????????????#???????? | | ???????????????????????# #????????????####????#? | | ???????????????????????# #???????????? ???#### | | ???????????????????????# #???????????? ???? | | ???????????????????????# #???????????? ????# | | ???????????????????????# #??????? ????# #????# | | ???????????????????????# #?????????#??# #??#?#+# | | ???????????????????????# #????????????# #????# | | ???????????????????????+ +????????????# #?#?## | | ???????????????????????#w #????????????# #???# | | ???????????????????????# #???????????## ###?# | | ???????????????????????# #???????????# ##### | | ???????????????????????# @k#???????????# %% + | | ???????????????????????# a#???????????# #####[ | | ?????????????########### #???????????## ##??# | | ?????????????# # #????#####???# #???## | | ?????????????# "T" # ###### ##### #????## | | ?????????????# #Y #?#???## | | ?????????????# + ### ########?????# | | ?????????????# """"" # ####+##????????????? | | ?????????????? """"" # #T #??????????#??? | | ?????????????# """"" #u ## #?????????#???? | | ?????????????# + uu ##===#?????????????? | | ?????????????## #T###/###/###+##===#????????#??##? | | ??????????????#?#???# ######????????????## | | ????????????????????# #??????????????????? | | ????????????????????# #??????????????????? | | ????????????????????# #??????????????????? | | ????????????????????# #??????????????????? | | ????????????????????# #??????????????????? | | ????????????????????# #??????????????????? | | ????????????????????# #??????????????????? | | ????????????????????###########??????????????????? | | ?????????????????????????????????????????????????? | | | | | | | +----------------------------------------------------+ Best States ------------- Heat Dissipation 42 Coolant Potential 50 Energy Generation 14 Energy Capacity 280 Matter Stores 300 Matter Capacity 300 Sight Range 16 Terrain Scan Range 16 Terrain Scan Density 10 Additional Mass Support 6 Evasion (%) 55 Recoil Reduction 2 Item Schematics ----------------- None Robot Schematics ------------------ None Fabricated ------------ Nothing Alien Tech Used ----------------- None Achievements -------------- None Challenges ------------ None Game ------ Seed EncryptedHeatSaw Manual? 0 Play Time 00:26:39 Cumulative 16.2 hours Start 2024.11.04 @ 11:33:49 End 2024.11.04 @ 11:59:10 Sessions 1 Manual Loads 0 Difficulty Rogue Special Mode None Game No. 16 Rogue 16 Adventurer 0 Explorer 0 Win Type - Total 0 Types 0/0/0/0/0/0/0/0/0 Lore% 10 Gallery% 22 Achievement% 19 Wizard Run 0 Options --------- Layout 1 ASCII 0 Keyboard 0 Movement Mouse Keybinds 0 Fullscreen 1 Font 24/Smallcaps Map View 50x35 Zoom Use 0% Tactical HUD 0 Map Filters NONE Filters NONE Steam 1 RUN: e0e1afd4-050b-43a5-aa08-8027055750a2